Cogmind - Beta 10.2 @@@ ROGUE MODE // 2021.10.15 @ 13:12:52 Player: MN-W4D Result: Destroyed by Y-54 Guardian with Flak Gun Performance ------------- Evolutions (3) 1500 Regions Visited (9) 1800 Robots Destroyed (47) 235 Value Destroyed (1271) 1271 Prototype IDs (2) 40 Alien Tech Used (0) 0 Bonus (-141) -141 TOTAL SCORE: 4705 Bonus ------- High Alert Combat Kills 45 Friendly Fire -186 Cogmind --------- Core Integrity 0/700 Matter 206/300 Energy 100/100 System Corruption 14% Temperature Cool (6) Movement Core (150) Ox2 Location -7/Storage Parts ------- > --- POWER (1) -------- (None) > --- PROPULSION (3) --- (None) > --- UTILITY (5) ------ Small Storage Unit > --- WEAPON (4) ------- Mini Assault Cannon > --- INVENTORY (6) ---- Medium Storage Unit Advanced Terrain Scanner Peak State ------------ > --- POWER ------------ Light Nuclear Core > --- PROPULSION ------- Advanced Treads Medium Treads Medium Treads > --- UTILITY ---------- Humpback Targeting Computer Advanced Targeting Computer Improved Propulsion Shielding > --- WEAPON ----------- Improved EM Pulse Cannon Improved EM Pulse Cannon Heavy Rocket Launcher Axe > --- INVENTORY -------- Nuclear Core Improved VTOL Module Improved VTOL Module Improved VTOL Module Medium Storage Unit Improved Signal Interpreter Improved Targeting Computer Particle Charger Improved Propulsion Shielding Improved Propulsion Shielding Improved EM Pulse Cannon Improved EM Pulse Cannon [Rating: 41] Favorites ----------- Power Light Nuclear Core Engine Light Ion Engine Power Core Light Nuclear Core Propulsion Aluminum Leg Treads Light Treads Leg Aluminum Leg Wheel Wheel Flight Unit Improved VTOL Module Utility Medium Storage Unit Device Terrain Scanner Storage Medium Storage Unit Processor Targeting Computer Protection Utility Shielding Weapon Assault Rifle Energy Gun EM Pulse Gun Energy Cannon Improved EM Pulse Cannon Ballistic Gun Assault Rifle Ballistic Cannon Mini Assault Cannon Launcher Rocket Launcher Impact Weapon Heavy Flail Slashing Weapon Axe Special Melee Weapon Datajack Build | -11 -10 -10 -10 -9 -8 -7 -7 -7 -7 ------- Run | Scr Mat Min Exi Min Mat Fac Was Fac Sto Slots Evolved 6 | . . . . . 4 2 . . . Power . | . . . . . . . . . . Propulsion 1 | . . . . . 1 . . . . Utility 3 | . . . . . 2 1 . . . Weapon 2 | . . . . . 1 1 . . . Parts Attached 87 | 7 11 3 2 . 29 12 8 9 6 Power 10 | 1 . 1 . . 5 2 1 . . Engine 1 | 1 . . . . . . . . . Core 9 | . . 1 . . 5 2 1 . . Reactor . | . . . . . . . . . . Propulsion 29 | 2 . . 2 . 13 3 3 2 4 Treads 9 | . . . 2 . 3 3 . . 1 Leg 7 | 2 . . . . 5 . . . . Wheel 3 | . . . . . . . . . 3 Hover . | . . . . . . . . . . Flight 10 | . . . . . 5 . 3 2 . Utility 25 | 1 8 . . . 5 4 2 4 1 Device 7 | . 3 . . . . 1 . 3 . Storage 9 | 1 4 . . . 1 1 1 . 1 Processor 3 | . . . . . 2 . . 1 . Hackware . | . . . . . . . . . . Protection 6 | . 1 . . . 2 2 1 . . Artifact . | . . . . . . . . . . Weapon 23 | 3 3 2 . . 6 3 2 3 1 Energy Gun 5 | 2 1 1 . . 1 . . . . Energy Cannon 2 | . . . . . . 2 . . . Ballistic Gun 3 | 1 . 1 . . 1 . . . . Ballistic Cannon 1 | . . . . . . . . . 1 Launcher 4 | . 2 . . . . . 2 . . Special Weapon . | . . . . . . . . . . Impact Weapon 1 | . . . . . 1 . . . . Slashing Weapon 6 | . . . . . 2 1 . 3 . Piercing Weapon . | . . . . . . . . . . Special Melee Weapon 1 | . . . . . 1 . . . . Unidentified Prototypes 2 | . . . . . 1 . . . 1 Parts Lost 24 | . . 1 . . 11 . 4 3 5 Power 4 | . . . . . 3 . . 1 . Propulsion 13 | . . . . . 5 . 2 2 4 Utility 1 | . . . . . . . 1 . . Weapon 6 | . . 1 . . 3 . 1 . 1 Highest Loss Streak 5 | . . 1 . . 3 . 3 3 5 Average Slot Usage (%) 84 | . 97 99 100 100 85 70 68 47 18 Engine 3 | . 14 9 . . . . . . . Core 6 | . . 4 14 14 8 7 5 5 . Treads 5 | . . . 5 28 9 11 13 . 1 Leg 13 | . 28 28 22 . 5 . . . . Flight 6 | . . . . . 10 11 7 20 . Storage 11 | . 14 14 14 14 14 7 7 6 4 Processor 5 | . . . . . 11 15 7 5 . Protection 8 | . 6 14 14 14 6 3 7 . . Energy Gun 7 | . 14 14 14 14 3 . . . . Energy Cannon 1 | . . . . . . 6 8 . . Ballistic Gun 6 | . 13 4 14 14 5 . . . . Launcher 1 | . . 8 . . . . 3 . . Impact Weapon 1 | . . . . . 4 . . . . Slashing Weapon 2 | . . . . . 2 5 4 6 4 Naked Turns 7 | . . . . . . . . 7 . Heaviest Build 113 | 11 24 18 18 18 39 104 113 18 8 Greatest Support 78 | 20 20 20 40 40 60 78 78 18 10 Greatest Overweight (x) 2 | 1 1 . . . 1 1 1 1 2 Average Overweight (x) . | . . . . . . . . . . Largest Inventory Capacity 28 | 6 10 8 8 8 14 28 24 8 6 Average Capacity 9 | 5 7 8 8 8 11 15 18 7 5 Most Carried 14 | 4 8 8 8 8 14 13 12 8 4 Average Carried 7 | 2 6 7 7 8 7 9 9 7 2 Final Capacity 24 | 6 8 8 8 8 8 24 8 4 6 Final Carried 12 | 4 8 8 8 8 7 12 8 3 2 Class Distribution -------------------- 58% | Mutant 23% | Sprinter 9% | Scavenger-Mutant 8% | Hauler-Mutant Dominant Class ---------------- Mutant | -10/Materials Mutant | -10/Mines Mutant | -10/Exiles Mutant | -9/Mines Sprinter | -8/Materials Hauler-Mutant | -7/Factory Sprinter | -7/Waste Sprinter | -7/Factory Mutant | -7/Storage Resources | -11 -10 -10 -10 -9 -8 -7 -7 -7 -7 ----------- Run | Scr Mat Min Exi Min Mat Fac Was Fac Sto Matter Collected 1276 | 260 49 233 20 . 318 125 169 14 88 Remotely . | . . . . . . . . . . Salvage Created 2010 | . 97 190 . . 923 436 202 14 148 Parts 88 | . 10 17 . . 33 16 2 3 7 Haulers Intercepted 1 | . . . . . 1 . . . . Recyclers Shooed . | . . . . . . . . . . Parts Field Recycled . | . . . . . . . . . . Retrieved Matter . | . . . . . . . . . . Parts Self-Destructed . | . . . . . . . . . . Prevented . | . . . . . . . . . . Kills | -11 -10 -10 -10 -9 -8 -7 -7 -7 -7 ------- Run | Scr Mat Min Exi Min Mat Fac Was Fac Sto Combat Hostiles Destroyed 34 | . 5 8 . . 15 4 1 . 1 Melee 11 | . . . . . 7 3 1 . . Guns 9 | . 1 3 . . 5 . . . . Cannons 2 | . . . . . . 1 . . 1 AOE 10 | . 4 5 . . 1 . . . . Classes Destroyed 10 | . 3 1 . . 2 1 1 1 1 Worker 1 | . . . . . . . . . 1 Builder 1 | . 1 . . . . . . . . Hauler 1 | . . . . . 1 . . . . Recycler 7 | . . 1 . . 3 2 . . 1 Operator 1 | . . . . . . . . 1 . Watcher 1 | . . . . . . 1 . . . Swarmer 12 | . 3 6 . . 3 . . . . Grunt 16 | . 2 2 . . 8 4 . . . Sentry 5 | . . . . . 4 . . . 1 Compactor 1 | . . . . . . . 1 . . Thug 1 | . . . . . . . 1 . . Best Kill Streak 6 | . 5 3 . . 4 6 1 1 2 Combat Bots Only 4 | . 4 3 . . 3 4 1 . 1 Max Kills in Single Turn 4 | . 4 2 . . 1 1 1 1 1 Gunslinging . | . . . . . . . . . . Exploded 3 | . 3 2 . . 1 . . . . Melee 1 | . . . . . 1 1 1 . . Uniques/NPCs Destroyed . | . . . . . . . . . . Combat | -11 -10 -10 -10 -9 -8 -7 -7 -7 -7 -------- Run | Scr Mat Min Exi Min Mat Fac Was Fac Sto Damage Taken 3860 | . 163 150 . . 1696 356 460 406 629 Core 1216 | . 46 48 . . 420 46 154 245 257 Absorbed by Shields . | . . . . . . . . . . Core Remaining (%) 61 | 100 . . . 62 23 . . . . Volleys Fired 60 | . 7 14 . . 23 2 7 . 7 Largest 3 | . 2 2 . . 3 2 1 . 1 Hottest 138 | . 70 90 . . 88 138 39 . 48 Shots Fired 97 | . 12 21 . . 46 4 7 . 7 Gun 73 | . 10 17 . . 46 . . . . Cannon 11 | . . . . . . 4 . . 7 Launcher 13 | . 2 4 . . . . 7 . . Special . | . . . . . . . . . . Kinetic 40 | . 5 2 . . 26 . . . 7 Thermal 24 | . 2 8 . . 14 . . . . Explosive 13 | . 2 4 . . . . 7 . . Electromagnetic 20 | . 3 7 . . 6 4 . . . Robot Hit Streak 16 | . 1 7 . . 16 8 12 . 3 Robot Miss Streak 5 | . 2 5 . . 1 . 1 . 1 Penetration Max . | . . . . . . . . . . Secondary Targets 1 | . . . . . 1 . . . . Max Gunslinging Chain 1 | . . . . . 1 . . . . Shots Hit Robots 117 | . 3 14 . . 63 13 7 2 15 Core Hits 63 | . 8 12 . . 22 9 6 1 5 Critical Hits . | . . . . . . . . . . Critical Kills . | . . . . . . . . . . Critical Parts Destroyed . | . . . . . . . . . . Melee Attacks 65 | . . . . . 34 11 4 6 10 Impact 25 | . . . . . 25 . . . . Slashing 40 | . . . . . 9 11 4 6 10 Piercing . | . . . . . . . . . . Sneak Attacks 10 | . . . . . 3 4 . . 3 Combat Hostiles 1 | . . . . . . 1 . . . Follow-up Attacks . | . . . . . . . . . . Damage Inflicted 4815 | . 283 502 . . 1615 706 885 95 729 Guns 744 | . 49 186 . . 509 . . . . Cannons 272 | . . . . . . 104 . . 168 Explosions 1542 | . 234 316 . . 156 . 836 . . Melee 2252 | . . . . . 945 602 49 95 561 Ramming 5 | . . . . . 5 . . . . Kinetic 440 | . . 13 . . 259 . . . 168 Thermal 483 | . 61 76 . . 346 . . . . Explosive 1350 | . 198 316 . . . . 836 . . Electromagnetic 285 | . 24 97 . . 60 104 . . . Impact 524 | . . . . . 524 . . . . Slashing 1728 | . . . . . 421 602 49 95 561 Piercing . | . . . . . . . . . . Highest Corruption 14 | . . . . . . . 14 14 14 Average Corruption 12 | . . . . . . . 8 14 14 Corruption Purged . | . . . . . . . . . . Effects 29 | . . . . . . . 4 19 6 Message Errors 4 | . . . . . . . 1 2 1 Matter Fused 5 | . . . . . . . 1 3 1 Heat Flow Errors 1 | . . . . . . . 1 . . Energy Discharges 2 | . . . . . . . 1 1 . Data Loss (minor) 5 | . . . . . . . . 3 2 Misdirections 9 | . . . . . . . . 8 1 Targeting Errors 3 | . . . . . . . . 2 1 Overload Shots . | . . . . . . . . . . Overflow Damage 413 | . . 3 . . 119 134 3 . 154 Projectiles . | . . . . . . . . . . Explosions 27 | . . 3 . . 21 . 3 . . Melee 386 | . . . . . 98 134 . . 154 Knockbacks 2 | . . . . . 2 . . . . Impact 2 | . . . . . 2 . . . . Kinetic . | . . . . . . . . . . Secondary . | . . . . . . . . . . Self-Inflicted Damage 469 | . 38 . . . 228 . 203 . . Shots 10 | . 1 . . . 3 . 6 . . Rammed 1 | . . . . . 1 . . . . Targets Rammed 1 | . . . . . 1 . . . . Kicked . | . . . . . . . . . . Crushed . | . . . . . . . . . . Highest Temperature 195 | . 30 195 . . 138 57 107 3 8 Average Temperature 50 | . 16 80 . . 47 30 59 2 4 Received Heat Transfer 1221 | . 48 54 . . 477 189 . 231 222 Siege Activations . | . . . . . . . . . . Robots Corrupted . | . . . . . . . . . . Combat Hostiles . | . . . . . . . . . . Parts Fried 5 | . . 1 . . 4 . . . . Impact Corruptions 7 | . . . . . 7 . . . . Robots Melted . | . . . . . . . . . . Combat Hostiles . | . . . . . . . . . . Parts Melted . | . . . . . . . . . . Heat Transferred 890 | . 74 222 . . 594 . . . . Parts Sabotaged . | . . . . . . . . . . Parts Stolen . | . . . . . . . . . . Parts Stripped . | . . . . . . . . . . Power Chain Reactions 2 | . 1 . . . 1 . . . . Missiles Intercepted . | . . . . . . . . . . Alert | -11 -10 -10 -10 -9 -8 -7 -7 -7 -7 ------- Run | Scr Mat Min Exi Min Mat Fac Was Fac Sto Peak Influence 503 | . 189 288 . . 474 503 213 308 186 Initial 215 | . . 73 . . . 215 176 149 139 Average 188 | . 83 174 . . 220 346 180 197 162 Maximum Alert Level 2 | . . 1 . . 2 2 1 1 . Low Security (%) 62 | 100 100 72 . 100 42 . 96 72 100 Level 1 30 | . . 27 . . 51 60 3 27 . Level 2 6 | . . . . . 6 39 . . . Level 3 . | . . . . . . . . . . Level 4 . | . . . . . . . . . . Level 5 . | . . . . . . . . . . High Security . | . . . . . . . . . . Max Security . | . . . . . . . . . . Squads Dispatched 10 | . 2 . . . 5 1 . 2 . Investigation 2 | . 1 . . . 1 . . . . Extermination 1 | . . . . . . 1 . . . Reinforcement 7 | . 1 . . . 4 . . 2 . Assault . | . . . . . . . . . . Garrison . | . . . . . . . . . . Intercept . | . . . . . . . . . . Construction Impeded . | . . . . . . . . . . Haulers Reinforced . | . . . . . . . . . . Stealth | -11 -10 -10 -10 -9 -8 -7 -7 -7 -7 --------- Run | Scr Mat Min Exi Min Mat Fac Was Fac Sto Distress Signals 9 | . 1 . . . 6 . . 1 1 Communications Jammed . | . . . . . . . . . . Distress Signals . | . . . . . . . . . . Times Spotted 97 | . 9 6 . . 37 16 5 20 4 Peak Tracking Total 14 | . 5 3 . . 8 6 4 14 4 Tactical Retreats 10 | . . . . . 5 3 . 2 . Traps | -11 -10 -10 -10 -9 -8 -7 -7 -7 -7 ------- Run | Scr Mat Min Exi Min Mat Fac Was Fac Sto Traps Triggered 7 | . 1 . . . . 1 . 5 . Indirectly . | . . . . . . . . . . Trap Hack Attempts . | . . . . . . . . . . Triggered . | . . . . . . . . . . Disarmed . | . . . . . . . . . . Reprogrammed . | . . . . . . . . . . Reused . | . . . . . . . . . . Traps Extracted . | . . . . . . . . . . Installed . | . . . . . . . . . . Triggered . | . . . . . . . . . . Machines | -11 -10 -10 -10 -9 -8 -7 -7 -7 -7 ---------- Run | Scr Mat Min Exi Min Mat Fac Was Fac Sto Machines Disabled 7 | . 2 1 . . 4 . . . . Max in Single Turn 4 | . 1 1 . . 4 . . . . Machines Sabotaged . | . . . . . . . . . . Garrisons Compromised . | . . . . . . . . . . Overloaded Fab Kills . | . . . . . . . . . . Fab Network Shutdowns . | . . . . . . . . . . Hacking | -11 -10 -10 -10 -9 -8 -7 -7 -7 -7 --------- Run | Scr Mat Min Exi Min Mat Fac Was Fac Sto Machines Accessed 11 | . 3 . 1 . 5 . . 1 1 Terminals 9 | . 3 . . . 4 . . 1 1 Fabricators . | . . . . . . . . . . Repair Stations . | . . . . . . . . . . Recycling Units . | . . . . . . . . . . Scanalyzers 1 | . . . . . 1 . . . . Garrison Access . | . . . . . . . . . . Total Hacks 30 | . 6 . 6 . 16 . . 1 1 Successful 19 | . 3 . 6 . 9 . . . 1 Failed 11 | . 3 . . . 7 . . 1 . Catastrophic 2 | . 1 . . . . . . 1 . Database Lockouts . | . . . . . . . . . . Manual 17 | . 5 . . . 12 . . . . Terminals 20 | . 6 . . . 12 . . 1 1 Fabricators . | . . . . . . . . . . Repair Stations . | . . . . . . . . . . Recycling Units . | . . . . . . . . . . Scanalyzers 4 | . . . . . 4 . . . . Garrison Access . | . . . . . . . . . . Terminal Hacks 11 | . 2 . 6 . 2 . . . 1 Record 7 | . . . 6 . 1 . . . . Open Door 1 | . . . . . . . . . 1 Branch Access Points 1 | . 1 . . . . . . . . Dispatch Records 1 | . 1 . . . . . . . . Recall Investigation 1 | . . . . . 1 . . . . Fabricator Hacks . | . . . . . . . . . . Repair Station Hacks . | . . . . . . . . . . Recycling Unit Hacks . | . . . . . . . . . . Scanalyzer . | . . . . . . . . . . Garrison Access Hacks . | . . . . . . . . . . Unauthorized Hacks 8 | . 1 . . . 7 . . . . Terminals 7 | . 1 . . . 6 . . . . Track 1 | . . . . . 1 . . . . Assimilate 1 | . . . . . 1 . . . . Botnet 5 | . 1 . . . 4 . . . . Fabricators . | . . . . . . . . . . Repair Stations . | . . . . . . . . . . Recycling Units . | . . . . . . . . . . Scanalyzers 1 | . . . . . 1 . . . . Extract 1 | . . . . . 1 . . . . Garrison Access . | . . . . . . . . . . Data Cores Recovered 1 | . . . . . . . . 1 . Used . | . . . . . . . . . . Hacking Detections 9 | . 3 . . . 4 . . 1 1 Full Trace Events . | . . . . . . . . . . Feedback Events . | . . . . . . . . . . Feedback Blocked . | . . . . . . . . . . Robot Schematics Acquired . | . . . . . . . . . . Robots Built . | . . . . . . . . . . Matter . | . . . . . . . . . . Time . | . . . . . . . . . . Total Robot Build Rating . | . . . . . . . . . . Part Schematics Acquired 2 | . . . . . 2 . . . . Parts Built . | . . . . . . . . . . Matter . | . . . . . . . . . . Time . | . . . . . . . . . . Total Part Build Rating . | . . . . . . . . . . Parts Repaired . | . . . . . . . . . . Time . | . . . . . . . . . . Parts Recycled . | . . . . . . . . . . Recycled Matter . | . . . . . . . . . . Retrieved Matter . | . . . . . . . . . . Retrieved Components . | . . . . . . . . . . Parts Scanalyzed . | . . . . . . . . . . Part Schematics Acquired . | . . . . . . . . . . Parts Damaged . | . . . . . . . . . . Bothacking | -11 -10 -10 -10 -9 -8 -7 -7 -7 -7 ------------ Run | Scr Mat Min Exi Min Mat Fac Was Fac Sto Used RIF Installer . | . . . . . . . . . . Robots Hacked . | . . . . . . . . . . Non-combat . | . . . . . . . . . . Combat . | . . . . . . . . . . Robot Hacks Applied . | . . . . . . . . . . Relay Couplers Released . | . . . . . . . . . . Robots Rewired . | . . . . . . . . . . Allies Hacked . | . . . . . . . . . . Hacks Repelled . | . . . . . . . . . . Allies | -11 -10 -10 -10 -9 -8 -7 -7 -7 -7 -------- Run | Scr Mat Min Exi Min Mat Fac Was Fac Sto Total Allies 2 | . . . . . 1 . 1 . . Largest Group 1 | . . . . . 1 . 1 . . Highest-Rated Group 31 | . . . . . 10 . 31 . . Highest-Rated Ally 31 | . . . . . 10 . 31 . . Total Orders . | . . . . . . . . . . Ally Attacks 5 | . . . . . . . 5 . . Total Damage 86 | . . . . . . . 86 . . Kills . | . . . . . . . . . . Allies Corrupted . | . . . . . . . . . . Allies Melted . | . . . . . . . . . . Intel | -11 -10 -10 -10 -9 -8 -7 -7 -7 -7 ------- Run | Scr Mat Min Exi Min Mat Fac Was Fac Sto Robot Analysis Total . | . . . . . . . . . . Derelict Logs Recovered 1 | . . 1 . . . . . . . Drone Launches . | . . . . . . . . . . Drone Recoveries . | . . . . . . . . . . Exploration | -11 -10 -10 -10 -9 -8 -7 -7 -7 -7 ------------- Run | Scr Mat Min Exi Min Mat Fac Was Fac Sto Turns Passed 2882 | 91 360 531 390 28 717 298 129 248 90 Spaces Moved 2486 | 67 256 404 306 18 439 446 144 348 58 Core 82 | 9 . . . . . . . 24 49 Treads 273 | . . . 37 18 131 56 31 . . Legs 1016 | 58 256 404 269 . 29 . . . . Wheels 9 | . . . . . . . . . 9 Hover . | . . . . . . . . . . Flight 1106 | . . . . . 279 390 113 324 . Fastest Speed 29 | 50 120 120 120 160 29 29 29 29 50 Average Speed 83 | 115 120 120 124 160 77 47 60 30 63 Slowest Speed 180 | 120 150 120 160 160 180 175 180 105 150 Overloaded Moves . | . . . . . . . . . . Propulsion Burnouts . | . . . . . . . . . . Robots Hopped 6 | . . . . . 1 1 . 4 . Cave-ins Triggered . | . . . . . . . . . . Exploration Rate (%) 37 | 5 47 66 76 10 49 14 80 12 16 Regions Visited 9 Branch Regions 4 Pre-discovered Areas 2 | . . 1 1 . . . . . . Known Exits Taken 2 | . 1 . . . . . . 1 . Unknown Exits Taken 5 | 1 . 1 1 1 1 . . . . Scrap Searched 2 | . . 2 . . . . . . . Spaces Dug 19 | . . . . . . 1 14 4 . Terrain Destroyed 162 | . 15 29 . . 48 1 64 4 1 Melee 5 | . . . . . . 1 . 4 . Projectile 1 | . . . . . . . . . 1 AOE 156 | . 15 29 . . 48 . 64 . . Terrain Rammed . | . . . . . . . . . . Walls Destroyed . | . . . . . . . . . . Machines Disabled . | . . . . . . . . . . Actions | -11 -10 -10 -10 -9 -8 -7 -7 -7 -7 --------- Run | Scr Mat Min Exi Min Mat Fac Was Fac Sto Total 3074 | 77 293 429 316 17 703 511 169 473 86 Wait 229 | . 12 5 . . 142 19 . 49 2 Move 2467 | 66 255 403 305 17 436 444 143 340 58 Hop 5 | . . . . . 1 1 . 3 . Pick Up 59 | 4 4 2 4 . 19 13 7 4 2 Fast Attach 34 | 6 3 1 . . 6 2 4 8 4 Attach 26 | . 1 1 . . 12 5 4 1 2 Detach 8 | . 1 . . . 3 3 . 1 . Swap 27 | 1 7 1 2 . 11 5 . . . Drop 39 | . 3 2 5 . 15 6 . 7 1 Fire 60 | . 7 14 . . 23 2 7 . 7 Melee 65 | . . . . . 34 11 4 6 10 Ram . | . . . . . . . . . . Kick . | . . . . . . . . . . Crush 1 | . . . . . 1 . . . . Escape Stasis 54 | . . . . . . . . 54 . Rewire . | . . . . . . . . . . Trap . | . . . . . . . . . . Miscellaneous . | . . . . . . . . . . Route ------- -11/Scrapyard -10/Materials (discovered 2 exits: [*Mat] / *Min) -10/Mines (discovered 2 exits: [*Mat] / *Exi) -10/Exiles -9/Mines -8/Materials -7/Factory -7/Waste -7/Factory -7/Storage History --------- Turn | Location | Event 8 | -11/Scrapyard | Discovered new exit (range 16) 92 | -11/Scrapyard | Entered Materials 315 | -10/Materials | Build established: Mutant 343 | -10/Materials | Discovered new exit (range 16) 352 | -10/Materials | Identified exit to Mines 452 | -10/Materials | Entered Mines 512 | -10/Mines | Learned location of Storage (-7) 592 | -10/Mines | Discovered new exit (range 7) 977 | -10/Mines | Deemed a non-threat by the Exiles lab entrance 977 | -10/Mines | Discovered new exit (range 5) 983 | -10/Mines | Entered Exiles 1012 | -10/Exiles | Met 8R-AWN 1031 | -10/Exiles | Met EX-HEX 1081 | -10/Exiles | Met EX-DEC 1085 | -10/Exiles | Learned location of Zion (-6) 1145 | -10/Exiles | Visited The Gauntlet 1356 | -10/Exiles | Discovered new exit (range 12) 1373 | -10/Exiles | Entered Mines 1385 | -9/Mines | Discovered new exit (range 10) 1401 | -9/Mines | Entered Materials 1401 | -8/Materials | Evolved 4 slots: Propulsion x1, Utility x2, Weapon x1 1578 | -8/Materials | Lost 3 parts (1n2w) 1911 | -8/Materials | Core integrity fell below 50% 2114 | -8/Materials | Discovered new exit (range 15) 2118 | -8/Materials | Entered Factory 2118 | -7/Factory | Evolved 2 slots: Utility x1, Weapon x1 2119 | -7/Factory | Identified exit to Storage 2131 | -7/Factory | Build established: Sprinter 2416 | -7/Factory | Sucked down chute 2416 | -7/Factory | Entered Waste 2417 | -7/Waste | Met a frightened Derelict 2431 | -7/Waste | EMP discharged 2444 | -7/Waste | Spotted C-40 Crusher 2484 | -7/Waste | Crushed by Compactor (1 part destroyed, 2 dropped) 2487 | -7/Waste | Crushed by Compactor (0 parts destroyed, 1 dropped) 2490 | -7/Waste | Crushed by Compactor (1 part destroyed, 1 dropped) 2493 | -7/Waste | Crushed by Compactor (0 parts destroyed, 1 dropped) 2497 | -7/Waste | Destroyed C-40 Crusher 2500 | -7/Waste | Released all parts (5) 2503 | -7/Waste | Spotted C-40 Crusher 2522 | -7/Waste | Spotted C-40 Crusher 2523 | -7/Waste | Spotted C-40 Crusher 2524 | -7/Waste | Lost 3 parts (2n1w) 2531 | -7/Waste | EMP discharged 2531 | -7/Waste | System corruption reached 10% 2534 | -7/Waste | Spotted C-40 Crusher 2537 | -7/Waste | Spotted C-40 Crusher 2541 | -7/Waste | Discovered new exit (range 16) 2545 | -7/Waste | Entered Factory 2775 | -7/Factory | Released all parts (3) 2778 | -7/Factory | Core integrity fell below 50% 2780 | -7/Factory | Discovered exit to Storage (range 11) 2793 | -7/Factory | Entered Storage 2804 | -7/Storage | Lost 3 parts (1p2n) 2860 | -7/Storage | Core integrity fell below 20% 2883 | -7/Storage | Destroyed by Y-54 Guardian with Flak Gun Last Messages --------------- 02829_ Acquired 28 matter. 02830_ System corrupted: Component data lost. 02834_ Sneak attack on W-25 Informer. 02834_ Destroyed Imp. Hover Unit. 02834_ Destroyed Lgt. Deuterium Engine. 02834_ Destroyed Imp. Sensor Array. 02835_ W-25 Informer sends out distress signal. 02840_ K-01 Serf destroyed. 02841_ Acquired Wheel. 02844_ Identified Mni. Assault Cannon. 02849_ Wheel destroyed. 02854_ System corrupted: Matter fused (-7). 02855_ Wheel destroyed. 02859_ Axe destroyed. 02866_ Y-54 Guardian destroyed. 02869_ Acquired Lgt. Treads. 02872_ R-06 Scavenger collects Imp. Heat Sink. 02876_ System corrupted: Mni. Assault Cannon targeting data glitched. 02879_ R-06 Scavenger collects Imp. Light Armor Plating. 02880_ Lgt. Treads destroyed. Map ----- +----------------------------------------------------+ | ??????????????????????????????????? | | ??????????????????????????????????? | | ??????????????????????????????????? | | ??????????????????????????????????? | | ??????????????????????????????????? | | ??????????????????????????????????? | | ??????????????????????????????????? | | ??????????????????????????????????? | | ??????????????????????????????????? | | ???????????? ?????????????????????? | | ???????????? ?????????????????????? | | ??????????## ?????????????????????? | | ?????????? ?????????????????????? | | ?????????? ##???????????????????? | | ?????????? #???????????????????? | | ??????????? +???????????????????? | | ??????????? #???????????????????? | | ???????????# #???????????????????? | | ???????????# #???????????????????? | | ?????????### ###?????????????????? | | ????###### # #?????????????????? | | ????# # #?????????????????? | | ????# # ##### #?????????? | | ????#" """ + ??????????? | | ????#T """r# % #?????????????????? | | ????#" """@#! #?????????????????? | | ????# Y% #?????????????????? | | ????######;#### #?????????????????? | | ?????????####?# #?????????????????? | | ??????????# #?#*#?????????????????? | | ?????????## #?# #?????????????????? | | ?????????#T #?# #?????????????????? | | ???????####+### #?????????????????? | | ???????# ! #?????????????????? | | ???????# ######!#?????????????????? | | ???????# #????#+####??????????????? | | #?? ???# #??? ???????????????? | | # ??# #??? ??????????????? | | # ""??# ### """ ??????????????? | | # """?# # """ #?????????????? | | # """?+ + """ #?????????????? | | # # # """ #?????????????? | | # """ # # """ ]#?????????????? | | # """ + #? #?????????????? | | # """ # #? #?????????????? | | # # #??##### #?????????????? | | ?#####?# #???????##?????????????? | | ???????# #??????????????????????? | | ???????# ############???????????? | | ??#!!" # ??????????? | +----------------------------------------------------+ Best States ------------- Heat Dissipation 34 Energy Generation 14 Energy Capacity 240 Matter Stores 300 Matter Capacity 300 Sight Range 16 Terrain Scan Range 20 Terrain Scan Density 10 Propulsion Shielding 66 Utility Shielding 33 Evasion (%) 64 Targeting Accuracy 13 Recoil Reduction 3 Item Schematics ----------------- Particle Gun | -8/Materials | Extracted Sensor Array | -8/Materials | Extracted Robot Schematics ------------------ None Fabricated ------------ Nothing Alien Tech Used ----------------- None Achievements -------------- GoHome() Challenges ------------ None Game ------ Seed MiniShadingNanosword Manual? 0 Play Time 01:21:46 Cumulative 29.1 hours Start 2021.10.09 @ 16:48:07 End 2021.10.15 @ 13:12:52 Sessions 8 Manual Loads 0 Difficulty Rogue Special Mode None Game No. 34 Rogue 27 Adventurer 7 Explorer 0 Win Type - Total 0 Types 0/0/0/0/0/0/0/0/0 Lore% 29 Gallery% 30 Achievement% 24 Wizard Run 0 Options --------- ASCII 0 Keyboard 0 Movement Mouse Keybinds 0 Fullscreen 0 Font 18/Terminus Map View 84x54 Tactical HUD 1 Map Filters NONE Filters NONE Steam 1 RUN: d4ed0063-8a6c-4f7c-86db-51cdacc1238e